fUST/lending_fUST_20250621
["ID","MTS","AMOUNT","RATE_DAILY","PERIOD"]
[366761006,1750435839962,-460.0,0.00019845,2]
[366761008,1750435839972,-1015.82,0.00019845,2]
[366761010,1750435839982,-460.0,0.00019846,2]
[366761012,1750435839991,-460.0,0.00019846,2]
[366761014,1750435840001,-583.38012545,0.00019846,2]
[366761016,1750435840010,-460.0,0.00019846,2]
[366761018,1750435840020,-460.0,0.00019846,2]
[366761020,1750435840029,-433.84542994,0.00019846,2]
[366761022,1750435840039,-460.0,0.00019847,2]
[366761024,1750435840049,-460.0,0.00019847,2]
[366761025,1750435840059,-460.0,0.00019847,2]
[366761027,1750435840069,-460.0,0.00019847,2]
[366761029,1750435840079,-460.0,0.00019847,2]
[366761031,1750435840088,-500.0,0.00019937,2]
[366761033,1750435840098,-517.08068501,0.00019937,2]
[366761035,1750435840107,-500.57114652,0.00019937,2]
[366761037,1750435840116,-500.0,0.00019937,2]
[366761039,1750435840125,-365.37169537,0.00019937,2]
[366761041,1750435840135,-500.0,0.00019937,2]
[366761043,1750435840147,-500.0,0.00019937,2]
[366761045,1750435840156,-500.33125713,0.00019937,2]
[366761047,1750435840166,-500.0,0.00019937,2]
[366761049,1750435840174,-159.71985028,0.00019954,2]
[366761051,1750435840184,-504.89682241,0.00019954,2]
[366761053,1750435840194,-513.9240945,0.00019954,2]
[366761056,1750435840205,-500.0,0.00019973,2]
[366761057,1750435840214,-500.0,0.00019973,2]
[366761059,1750435840224,-504.0200472,0.00019973,2]
[366761061,1750435840233,-500.0,0.00019989,2]
[366761063,1750435840243,-500.0,0.00019989,2]
[366761065,1750435840253,-500.0,0.00019989,2]
[366761067,1750435840263,-100000.0,0.0001999,2]
[366761069,1750435840272,-174847.14641952,0.0002,2]
[366761071,1750435840282,-500.0,0.00020016,2]
[366761072,1750435840292,-501.07746307,0.00020016,2]
[366761073,1750435840301,-500.0,0.00020017,2]
[366761074,1750435840311,-500.0,0.00020017,2]
[366761075,1750435840321,-500.0,0.00020017,2]
[366761076,1750435840331,-500.0,0.00020017,2]
[366761077,1750435840340,-197.70550645,0.00020017,2]
[366761078,1750435840349,-538.21200696,0.00020024,2]
[366761079,1750435840359,-532.98731685,0.00020033,2]
[366761080,1750435840368,-550.41727479,0.00020033,2]
[366761081,1750435840377,-500.61588998,0.00020107,2]
[366761082,1750435840388,-504.4273068,0.00020107,2]
[366761083,1750435840399,-500.50538099,0.00020107,2]
[366761084,1750435840409,-500.0,0.00020107,2]
[366761085,1750435840418,-460.0,0.00020117,2]
[366761086,1750435840427,-460.0,0.00020117,2]
[366761087,1750435840436,-560.64,0.00020117,2]
[366761088,1750435840446,-460.0,0.00020117,2]
[366761089,1750435840456,-460.0,0.00020117,2]
[366761090,1750435840465,-1893.57,0.00020117,2]
[366761091,1750435840475,-1610.37,0.00020117,2]
[366761092,1750435840485,-460.0,0.00020117,2]
[366761093,1750435840494,-460.0,0.00020117,2]
[366761094,1750435840504,-460.0,0.00020117,2]
[366761096,1750435840513,-460.0,0.00020117,2]
[366761098,1750435840523,-460.0,0.00020117,2]
[366761100,1750435840532,-460.0,0.00020117,2]
[366761102,1750435840542,-460.0,0.00020117,2]
[366761104,1750435840551,-255.42575182,0.00020118,2]
[366761106,1750435840561,-460.0,0.00020118,2]
[366761108,1750435840571,-1605.67,0.00020118,2]
[366761110,1750435840580,-1827.4,0.00020118,2]
[366761112,1750435840590,-460.0,0.00020118,2]
[366761114,1750435840599,-541.73,0.00020118,2]
[366761116,1750435840609,-800.1,0.00020118,2]
[366761118,1750435840619,-460.0,0.00020118,2]
[366761120,1750435840629,-1114.28,0.00020118,2]
[366761122,1750435840639,-854.28,0.00020118,2]
[366761124,1750435840648,-460.0,0.00020118,2]
[366761126,1750435840659,-460.0,0.00020118,2]
[366761128,1750435840668,-460.0,0.00020118,2]
[366761130,1750435840677,-460.0,0.00020118,2]
[366761132,1750435840687,-460.0,0.00020118,2]
[366761134,1750435840696,-460.0,0.00020118,2]
[366761136,1750435840708,-460.0,0.00020118,2]
[366761138,1750435840717,-460.0,0.00020118,2]
[366761140,1750435840726,-460.0,0.00020118,2]
[366761142,1750435840737,-460.0,0.00020118,2]
[366761144,1750435840746,-460.0,0.00020119,2]
[366761146,1750435840755,-460.0,0.00020119,2]
[366761148,1750435840766,-460.0,0.00020119,2]
[366761150,1750435840776,-460.0,0.00020119,2]
[366761152,1750435840786,-460.0,0.00020119,2]
[366761154,1750435840795,-460.0,0.00020119,2]
[366761156,1750435840805,-460.0,0.00020119,2]
[366761158,1750435840814,-460.0,0.00020119,2]
[366761160,1750435840823,-460.0,0.00020119,2]
[366761162,1750435840832,-460.0,0.00020119,2]
[366761164,1750435840842,-460.0,0.00020119,2]
[366761166,1750435840852,-460.0,0.00020119,2]
[366761168,1750435840862,-460.0,0.00020119,2]
[366761170,1750435840872,-460.0,0.00020119,2]
[366761172,1750435840882,-594.58,0.00020119,2]
[366761174,1750435840894,-558.50385645,0.00020119,2]
[366761176,1750435840903,-460.0,0.00020119,2]
[366761178,1750435840913,-460.0,0.00020119,2]
[366761180,1750435840922,-460.0,0.00020119,2]
[366761182,1750435840932,-513.93,0.00020119,2]
[366761184,1750435840943,-867.72,0.00020119,2]
[366761186,1750435840952,-460.0,0.00020119,2]
[366761188,1750435840963,-460.0,0.00020119,2]
[366761190,1750435840973,-390.0,0.00020119,2]
[366761192,1750435840983,-460.0,0.00020119,2]
[366761194,1750435840993,-616.46,0.00020119,2]
[366761196,1750435841003,-460.0,0.00020119,2]
[366761198,1750435841012,-460.0,0.00020119,2]
[366761200,1750435841022,-979.01,0.00020119,2]
[366761202,1750435841031,-700.85,0.00020119,2]
[366761204,1750435841047,-546.59,0.00020119,2]
[366761206,1750435841056,-460.0,0.00020119,2]
[366761208,1750435841066,-2270.64,0.00020119,2]
[366761210,1750435841076,-460.0,0.00020119,2]
[366761212,1750435841086,-460.0,0.00020119,2]
[366761214,1750435841096,-460.0,0.00020119,2]
[366761216,1750435841105,-577.92,0.00020119,2]
[366761217,1750435841115,-436.46246881,0.00020119,2]
[366761219,1750435841125,-460.0,0.00020119,2]
[366761221,1750435841135,-460.0,0.00020119,2]
[366761222,1750435841144,-793.18,0.00020119,2]
[366761225,1750435841154,-460.0,0.00020119,2]
[366761226,1750435841164,-2419.69,0.00020119,2]
[366761228,1750435841173,-477.0235697,0.00020119,2]
[366761230,1750435841182,-460.0,0.00020119,2]
[366761232,1750435841192,-460.0,0.00020119,2]
[366761234,1750435841204,-460.0,0.00020119,2]
[366761236,1750435841213,-460.0,0.00020119,2]
[366761238,1750435841223,-460.0,0.00020119,2]
[366761240,1750435841232,-460.0,0.00020119,2]
[366761242,1750435841242,-460.0,0.00020119,2]
[366761244,1750435841251,-460.0,0.00020119,2]
[366761246,1750435841262,-460.0,0.00020119,2]
[366761248,1750435841271,-460.0,0.00020119,2]
[366761250,1750435841281,-355.5,0.00020119,2]
[366761252,1750435841291,-1015.82,0.00020119,2]
[366761254,1750435841301,-460.0,0.0002012,2]
[366761256,1750435841310,-460.0,0.0002012,2]
[366761258,1750435841319,-460.0,0.0002012,2]
[366761260,1750435841329,-460.0,0.0002012,2]
[366761262,1750435841339,-460.0,0.00020121,2]
[366761264,1750435841349,-460.0,0.00020121,2]
[366761266,1750435841358,-448.84569346,0.00020121,2]
[366761268,1750435841368,-460.0,0.00020121,2]
[366761270,1750435841379,-428.94225883,0.00020121,2]
[366761272,1750435841388,-500.0,0.00020136,2]
[366761274,1750435841397,-500.0,0.00020136,2]
[366761276,1750435841407,-500.0,0.00020164,2]
[366761278,1750435841416,-300.39179917,0.00020358,2]
[366761280,1750435841426,-460.0,0.00020391,2]
[366761282,1750435841435,-460.0,0.00020391,2]
[366761284,1750435841444,-560.64,0.00020391,2]
[366761286,1750435841456,-460.0,0.00020391,2]
[366761288,1750435841466,-460.0,0.00020391,2]
[366761290,1750435841475,-1893.57,0.00020391,2]
[366761292,1750435841485,-1610.37,0.00020391,2]
[366761294,1750435841494,-460.0,0.00020391,2]
[366761295,1750435841504,-460.0,0.00020391,2]
[366761297,1750435841513,-460.0,0.00020391,2]
[366761299,1750435841523,-228.78,0.00020391,2]
[366761301,1750435841532,-460.0,0.00020391,2]
[366761303,1750435841541,-166.149474,0.00020391,2]
[366761305,1750435841551,-515.23,0.00020391,2]
[366761307,1750435841561,-460.0,0.00020392,2]
[366761309,1750435841570,-1605.67,0.00020392,2]
[366761311,1750435841579,-1827.4,0.00020392,2]
[366761313,1750435841589,-541.73,0.00020392,2]
[366761314,1750435841599,-800.1,0.00020392,2]
[366761315,1750435841609,-460.0,0.00020392,2]
[366761316,1750435841618,-1114.28,0.00020392,2]
[366761317,1750435841628,-854.28,0.00020392,2]
[366761318,1750435841638,-460.0,0.00020392,2]
[366761319,1750435841647,-460.0,0.00020392,2]
[366761320,1750435841656,-460.0,0.00020392,2]
[366761321,1750435841666,-460.0,0.00020392,2]
[366761322,1750435841675,-416.79259079,0.00020392,2]
[366761323,1750435841685,-460.0,0.00020392,2]
[366761324,1750435841694,-460.0,0.00020392,2]
[366761325,1750435841705,-460.0,0.00020392,2]
[366761326,1750435841715,-460.0,0.00020392,2]
[366761327,1750435841724,-460.0,0.00020392,2]
[366761328,1750435841734,-294.07415984,0.00020393,2]
[366761329,1750435841744,-204.16,0.00020393,2]
[366761330,1750435841753,-460.0,0.00020393,2]
[366761331,1750435841763,-460.0,0.00020393,2]
[366761332,1750435841773,-482.2795677,0.00020393,2]
[366761333,1750435841782,-300.0,0.00020393,2]
[366761334,1750435841793,-460.0,0.00020393,2]
[366761335,1750435841803,-460.0,0.00020393,2]
[366761336,1750435841813,-460.0,0.00020393,2]
[366761337,1750435841822,-460.0,0.00020393,2]
[366761338,1750435841832,-460.0,0.00020393,2]
[366761339,1750435841842,-438.82236216,0.00020393,2]
[366761340,1750435841851,-420.0,0.00020393,2]
[366761341,1750435841861,-594.58,0.00020393,2]
[366761342,1750435841870,-460.0,0.00020393,2]
[366761343,1750435841879,-460.0,0.00020393,2]
[366761344,1750435841890,-460.0,0.00020393,2]
[366761345,1750435841901,-513.93,0.00020393,2]
[366761346,1750435841911,-867.72,0.00020393,2]
[366761347,1750435841920,-460.0,0.00020393,2]
[366761348,1750435841931,-288.67748286,0.00020393,2]
[366761349,1750435841940,-460.0,0.00020393,2]
[366761350,1750435841950,-616.46,0.00020393,2]
[366761351,1750435841963,-440.0,0.00020393,2]
[366761352,1750435841973,-460.0,0.00020393,2]
[366761353,1750435841982,-979.01,0.00020393,2]
[366761354,1750435841991,-700.85,0.00020393,2]
[366761355,1750435842001,-546.59,0.00020393,2]
[366761356,1750435842012,-460.0,0.00020393,2]
[366761357,1750435842021,-2270.64,0.00020393,2]
[366761358,1750435842031,-460.0,0.00020393,2]
[366761359,1750435842041,-460.0,0.00020393,2]
[366761360,1750435842052,-460.0,0.00020393,2]
[366761361,1750435842062,-577.92,0.00020393,2]
[366761362,1750435842071,-460.0,0.00020393,2]
[366761363,1750435842081,-460.0,0.00020393,2]
[366761364,1750435842090,-793.18,0.00020393,2]
[366761365,1750435842100,-460.0,0.00020393,2]
[366761366,1750435842109,-2419.69,0.00020393,2]
[366761367,1750435842119,-460.0,0.00020393,2]
[366761368,1750435842129,-460.0,0.00020393,2]
[366761369,1750435842139,-460.0,0.00020393,2]
[366761370,1750435842148,-460.0,0.00020393,2]
[366761371,1750435842159,-460.0,0.00020393,2]
[366761372,1750435842168,-396.41042592,0.00020393,2]
[366761373,1750435842179,-268.72212638,0.00020393,2]
[366761374,1750435842188,-460.0,0.00020393,2]
[366761375,1750435842198,-460.0,0.00020393,2]
[366761376,1750435842209,-460.0,0.00020393,2]
[366761377,1750435842219,-1015.82,0.00020393,2]
[366761378,1750435842229,-460.0,0.00020394,2]
[366761379,1750435842239,-460.0,0.00020394,2]
[366761380,1750435842248,-460.0,0.00020394,2]
[366761381,1750435842258,-460.0,0.00020394,2]
[366761382,1750435842268,-460.0,0.00020395,2]
[366761383,1750435842277,-460.0,0.00020395,2]
[366761384,1750435842288,-460.0,0.00020395,2]
[366761385,1750435842298,-160.0,0.0002041,2]
[366761386,1750435842309,-160.0,0.0002041,2]
[366761387,1750435842319,-160.0,0.0002041,2]
[366761388,1750435842329,-213.51557418,0.0002041,2]
[366761389,1750435842339,-424.85694595,0.0002041,2]
[366761390,1750435842348,-160.0,0.0002041,2]
[366761391,1750435842358,-160.0,0.0002041,2]
[366761392,1750435842368,-160.0,0.0002041,2]
[366761393,1750435842378,-230.06456406,0.0002041,2]
[366761395,1750435842388,-523.92420239,0.0002041,2]
[366761396,1750435842397,-160.0,0.0002041,2]
[366761398,1750435842408,-836.27303475,0.0002041,2]
[366761400,1750435842417,-160.0,0.0002041,2]
[366761404,1750435842428,-846.08887863,0.0002041,2]
[366761408,1750435842437,-1000.0,0.00020537,2]
[366761410,1750435842448,-500.0,0.00020547,7]
[366761412,1750435842460,-322.39626837,0.00020548,2]
[366761415,1750435842470,-500.0,0.00020548,2]
[366761419,1750435842613,-208.11721888,0.00020564,2]
[366761420,1750435842624,-204.194,0.00020573,2]
[366761421,1750435842634,-1735.34,0.000206,2]
[366761422,1750435842644,-460.0,0.00020665,2]
[366761423,1750435842653,-510.64891602,0.00020665,2]
[366761424,1750435842664,-560.64,0.00020665,2]
[366761425,1750435842674,-460.0,0.00020665,2]
[366761426,1750435842683,-460.0,0.00020665,2]
[366761427,1750435842693,-1893.57,0.00020665,2]
[366761429,1750435842704,-1610.37,0.00020665,2]
[366761431,1750435842714,-460.0,0.00020665,2]
[366761433,1750435842724,-460.0,0.00020665,2]
[366761435,1750435842734,-460.0,0.00020665,2]
[366761437,1750435842744,-460.0,0.00020665,2]
[366761439,1750435842754,-460.0,0.00020666,2]
[366761441,1750435842764,-1605.67,0.00020666,2]
[366761443,1750435842774,-1827.4,0.00020666,2]
[366761445,1750435842783,-541.73,0.00020666,2]
[366761447,1750435842793,-800.1,0.00020666,2]
[366761449,1750435842802,-460.0,0.00020666,2]
[366761451,1750435842812,-1114.28,0.00020666,2]
[366761453,1750435842823,-854.28,0.00020666,2]
[366761455,1750435842833,-460.0,0.00020666,2]
[366761457,1750435842843,-460.0,0.00020666,2]
[366761459,1750435842853,-460.0,0.00020666,2]
[366761461,1750435842863,-460.0,0.00020666,2]
[366761463,1750435842873,-460.0,0.00020666,2]
[366761465,1750435842883,-460.0,0.00020666,2]
[366761467,1750435842895,-460.0,0.00020666,2]
[366761469,1750435842905,-460.0,0.00020666,2]
[366761471,1750435842915,-460.0,0.00020666,2]
[366761473,1750435842924,-460.0,0.00020667,2]
[366761475,1750435842934,-460.0,0.00020667,2]
[366761477,1750435842944,-204.9841689,0.00020667,2]
[366761479,1750435842955,-548.81342715,0.00020667,2]
[366761481,1750435842965,-440.0,0.00020667,2]
[366761483,1750435842975,-460.0,0.00020667,2]
[366761484,1750435842986,-460.0,0.00020667,2]
[366761486,1750435842995,-594.58,0.00020667,2]
[366761487,1750435843005,-460.0,0.00020667,2]
[366761488,1750435843015,-460.0,0.00020667,2]
[366761489,1750435843025,-513.93,0.00020667,2]
[366761490,1750435843034,-460.0,0.00020667,2]
[366761491,1750435843043,-867.72,0.00020667,2]
[366761492,1750435843053,-460.0,0.00020667,2]
[366761493,1750435843062,-616.46,0.00020667,2]
[366761495,1750435843072,-460.0,0.00020667,2]
[366761497,1750435843083,-979.01,0.00020667,2]
[366761498,1750435843092,-700.85,0.00020667,2]
[366761499,1750435843102,-546.59,0.00020667,2]
[366761500,1750435843112,-460.0,0.00020667,2]
[366761501,1750435843121,-2270.64,0.00020667,2]
[366761502,1750435843132,-460.0,0.00020667,2]
[366761503,1750435843142,-460.0,0.00020667,2]
[366761504,1750435843151,-275.05090501,0.00020667,2]
[366761505,1750435843161,-577.92,0.00020667,2]
[366761506,1750435843171,-460.0,0.00020667,2]
[366761508,1750435843180,-460.0,0.00020667,2]
[366761510,1750435843190,-793.18,0.00020667,2]
[366761512,1750435843199,-460.0,0.00020667,2]
[366761515,1750435843212,-2419.69,0.00020667,2]
[366761516,1750435843221,-460.0,0.00020667,2]
[366761517,1750435843231,-460.0,0.00020667,2]
[366761518,1750435843241,-460.0,0.00020667,2]
[366761519,1750435843251,-460.0,0.00020667,2]
[366761520,1750435843260,-460.0,0.00020667,2]
[366761521,1750435843270,-555.67,0.00020667,2]
[366761522,1750435843280,-460.0,0.00020667,2]
[366761523,1750435843290,-460.0,0.00020667,2]
[366761524,1750435843299,-1015.82,0.00020667,2]
[366761525,1750435843309,-460.0,0.00020668,2]
[366761527,1750435843319,-460.0,0.00020668,2]
[366761528,1750435843328,-460.0,0.00020668,2]
[366761529,1750435843338,-460.0,0.00020669,2]
[366761530,1750435843347,-460.0,0.00020669,2]
[366761531,1750435843357,-460.0,0.00020669,2]
[366761532,1750435843367,-160.0,0.0002067,2]
[366761533,1750435843376,-74493.34,0.000207,2]
[366761534,1750435843386,-158.33478503,0.00020752,2]
[366761535,1750435843395,-560.64,0.00020939,2]
[366761536,1750435843405,-1893.57,0.00020939,2]
[366761537,1750435843414,-1610.37,0.00020939,2]
[366761538,1750435843424,-460.0,0.00020939,2]
[366761539,1750435843434,-460.0,0.00020939,2]
[366761540,1750435843444,-1605.67,0.0002094,2]
[366761541,1750435843454,-1827.4,0.0002094,2]
[366761542,1750435843464,-541.73,0.0002094,2]
[366761543,1750435843474,-800.1,0.0002094,2]
[366761544,1750435843483,-1114.28,0.0002094,2]
[366761545,1750435843493,-854.28,0.0002094,2]
[366761546,1750435843502,-460.0,0.0002094,2]
[366761547,1750435843512,-460.0,0.0002094,2]
[366761548,1750435843522,-460.0,0.0002094,2]
[366761549,1750435843532,-460.0,0.0002094,2]
[366761550,1750435843541,-460.0,0.0002094,2]
[366761551,1750435843551,-460.0,0.0002094,2]
[366761552,1750435843560,-460.0,0.0002094,2]
[366761553,1750435843571,-460.0,0.0002094,2]
[366761554,1750435843580,-277.41982914,0.00020941,2]
[366761555,1750435843590,-508.72415572,0.00020941,2]
[366761556,1750435843599,-594.58,0.00020941,2]
[366761557,1750435843609,-460.0,0.00020941,2]
[366761558,1750435843619,-513.93,0.00020941,2]
[366761559,1750435843628,-867.72,0.00020941,2]
[366761560,1750435843638,-616.46,0.00020941,2]
[366761561,1750435843648,-979.01,0.00020941,2]
[366761562,1750435843657,-700.85,0.00020941,2]
[366761563,1750435843667,-546.59,0.00020941,2]
[366761564,1750435843676,-2270.64,0.00020941,2]
[366761565,1750435843686,-577.92,0.00020941,2]
[366761566,1750435843695,-460.0,0.00020941,2]
[366761567,1750435843706,-793.18,0.00020941,2]
[366761569,1750435843715,-460.0,0.00020941,2]
[366761571,1750435843725,-2419.69,0.00020941,2]
[366761573,1750435843734,-460.0,0.00020941,2]
[366761574,1750435843744,-460.0,0.00020941,2]
[366761575,1750435843753,-460.0,0.00020941,2]
[366761576,1750435843763,-460.0,0.00020941,2]
[366761577,1750435843773,-1015.82,0.00020941,2]
[366761578,1750435843783,-460.0,0.00020942,2]
[366761579,1750435843793,-460.0,0.00020942,2]
[366761580,1750435843803,-420.0,0.00021024,2]
[366761581,1750435843813,-420.0,0.00021025,2]
[366761582,1750435843823,-1500.0,0.00021085,2]
[366761583,1750435843833,-500.0,0.00021095,8]
[366761584,1750435843842,-1680.0,0.00021126,2]
[366761585,1750435843851,-207.4,0.00021146,2]
[366761586,1750435843861,-1688.0,0.00021146,2]
[366761587,1750435843870,-500.0,0.00021146,2]
[366761588,1750435843880,-5000.0,0.00021146,2]
[366761589,1750435843893,-500.0,0.00021146,2]
[366761590,1750435843902,-500.0,0.00021146,2]
[366761591,1750435843912,-500.0,0.00021146,2]
[366761592,1750435843921,-500.0,0.00021146,2]
[366761593,1750435843930,-500.0,0.00021146,2]
[366761594,1750435843941,-500.0,0.00021146,2]
[366761595,1750435843951,-500.0,0.00021146,2]
[366761596,1750435843963,-500.0,0.00021146,2]
[366761597,1750435843974,-500.0,0.00021146,2]
[366761598,1750435843983,-500.0,0.00021146,2]
[366761599,1750435843992,-500.0,0.00021146,2]
[366761600,1750435844002,-500.0,0.00021146,2]
[366761601,1750435844011,-500.0,0.00021146,2]
[366761602,1750435844020,-500.0,0.00021146,2]
[366761603,1750435844029,-500.0,0.00021146,2]
[366761604,1750435844039,-500.0,0.00021146,2]
[366761605,1750435844049,-500.0,0.00021146,2]
[366761606,1750435844058,-500.0,0.00021146,2]
[366761607,1750435844069,-533.47031743,0.00021146,2]
[366761608,1750435844078,-25000.0,0.00021146,2]
[366761609,1750435844088,-560.64,0.00021213,2]
[366761610,1750435844098,-1893.57,0.00021213,2]
[366761611,1750435844108,-1610.37,0.00021213,2]
[366761612,1750435844117,-460.0,0.00021213,2]
[366761613,1750435844127,-460.0,0.00021213,2]
[366761614,1750435844138,-1605.67,0.00021214,2]
[366761615,1750435844147,-1827.4,0.00021214,2]
[366761616,1750435844157,-541.73,0.00021214,2]
[366761617,1750435844166,-800.1,0.00021214,2]
[366761618,1750435844177,-1114.28,0.00021214,2]
[366761619,1750435844186,-854.28,0.00021214,2]
[366761620,1750435844196,-460.0,0.00021214,2]
[366761621,1750435844205,-207.36,0.00021214,2]
[366761622,1750435844214,-460.0,0.00021214,2]
[366761623,1750435844224,-363.74,0.00021214,2]
[366761624,1750435844235,-410.15599146,0.00021214,2]
[366761625,1750435844244,-460.0,0.00021214,2]
[366761626,1750435844254,-460.0,0.00021214,2]
[366761627,1750435844263,-460.0,0.00021214,2]
[366761628,1750435844272,-594.58,0.00021215,2]
[366761629,1750435844282,-460.0,0.00021215,2]
[366761630,1750435844292,-513.93,0.00021215,2]
[366761631,1750435844302,-867.72,0.00021215,2]
[366761632,1750435844312,-616.46,0.00021215,2]
[366761633,1750435844321,-979.01,0.00021215,2]
[366761634,1750435844331,-700.85,0.00021215,2]
[366761635,1750435844341,-546.59,0.00021215,2]
[366761636,1750435844351,-2270.64,0.00021215,2]
[366761637,1750435844360,-577.92,0.00021215,2]
[366761638,1750435844370,-460.0,0.00021215,2]
[366761639,1750435844380,-793.18,0.00021215,2]
[366761640,1750435844389,-460.0,0.00021215,2]
[366761641,1750435844399,-2419.69,0.00021215,2]
[366761642,1750435844408,-460.0,0.00021215,2]
[366761643,1750435844418,-460.0,0.00021215,2]
[366761644,1750435844427,-460.0,0.00021215,2]
[366761645,1750435844437,-460.0,0.00021215,2]
[366761646,1750435844446,-1015.82,0.00021215,2]
[366761647,1750435844456,-460.0,0.00021216,2]
[366761648,1750435844466,-460.0,0.00021216,2]
[366761649,1750435844477,-274.0,0.0002127,2]
[366761650,1750435844488,-1897.50364844,0.000213,5]
[366761651,1750435844497,-1897.50364842,0.000213,5]
[366761652,1750435844506,-1897.50364842,0.000213,5]
[366761653,1750435844515,-1897.50364842,0.000213,5]
[366761654,1750435844525,-1897.50364842,0.000213,5]
[366761655,1750435844535,-1897.50364842,0.000213,5]
[366761656,1750435844544,-1897.50364842,0.000213,5]
[366761657,1750435844553,-411.7517879,0.00021316,2]
[366761658,1750435844563,-1897.50364842,0.00021348,5]
[366761659,1750435844573,-411.7517879,0.00021382,2]
[366761660,1750435844584,-560.64,0.00021487,2]
[366761661,1750435844594,-1893.57,0.00021487,2]
[366761662,1750435844603,-1610.37,0.00021487,2]
[366761663,1750435844613,-569.47,0.00021487,2]
[366761664,1750435844623,-460.0,0.00021487,2]
[366761665,1750435844632,-1605.67,0.00021488,2]
[366761666,1750435844642,-1827.4,0.00021488,2]
[366761667,1750435844651,-541.73,0.00021488,2]
[366761668,1750435844661,-800.1,0.00021488,2]
[366761669,1750435844671,-1114.28,0.00021488,2]
[366761670,1750435844680,-854.28,0.00021488,2]
[366761671,1750435844689,-460.0,0.00021488,2]
[366761672,1750435844699,-460.0,0.00021488,2]
[366761673,1750435844708,-460.0,0.00021488,2]
[366761674,1750435844717,-460.0,0.00021488,2]
[366761675,1750435844727,-460.0,0.00021488,2]
[366761676,1750435844736,-594.58,0.00021489,2]
[366761677,1750435844746,-460.0,0.00021489,2]
[366761678,1750435844756,-513.93,0.00021489,2]
[366761679,1750435844766,-867.72,0.00021489,2]
[366761680,1750435844775,-616.46,0.00021489,2]
[366761681,1750435844785,-979.01,0.00021489,2]
[366761682,1750435844795,-700.85,0.00021489,2]
[366761683,1750435844805,-546.59,0.00021489,2]
[366761684,1750435844815,-2270.64,0.00021489,2]
[366761685,1750435844825,-577.92,0.00021489,2]
[366761686,1750435844834,-460.0,0.00021489,2]
[366761687,1750435844844,-793.18,0.00021489,2]
[366761688,1750435844854,-288.56119459,0.00021489,2]
[366761689,1750435844863,-2419.69,0.00021489,2]
[366761690,1750435844873,-460.0,0.00021489,2]
[366761691,1750435844883,-460.0,0.00021489,2]
[366761692,1750435844892,-460.0,0.00021489,2]
[366761693,1750435844905,-460.0,0.00021489,2]
[366761694,1750435844915,-1015.82,0.00021489,2]
[366761695,1750435844924,-154.42,0.0002149,2]
[366761696,1750435844935,-460.0,0.0002149,2]
[366761697,1750435844944,-160.0,0.00021494,3]
[366761698,1750435844954,-1897.50364842,0.00021555,5]
[366761699,1750435844964,-500.0,0.00021633,2]
[366761700,1750435844975,-500.0,0.00021643,9]
[366761701,1750435844985,-150.0,0.00021684,2]